[Event "*** SCC Grand Prix: Titled Tuesday Blitz"]
[Site "Chess.com"]
[Date "2020.08.04"]
[Round "3"]
[White "Cambek64"]
[Black "DrMamaliga"]
[Result "1-0"]
[WhiteElo "2365"]
[BlackElo "2185"]
[TimeControl "180+1"]
[EndTime "14:14:44 PDT"]
[Termination "Cambek64 won by resignation"]

1. e4 {[%clk 0:03:00.9]} 1... e5 {[%clk 0:02:59.6]} 2. Nf3 {[%clk 0:03:00.1]}
2... Nc6 {[%clk 0:02:59.7]} 3. Bb5 {[%clk 0:02:59.1]} 3... a6 {[%clk 0:02:59.5]}
4. Bxc6 {[%clk 0:02:58.1]} 4... dxc6 {[%clk 0:03:00.4]} 5. O-O {[%clk 0:02:58]}
5... Qf6 {[%clk 0:03:00.5]} 6. d3 {[%clk 0:02:57.2]} 6... c5 {[%clk 0:02:59.6]}
7. Be3 {[%clk 0:02:55.6]} 7... Bd7 {[%clk 0:02:55.2]} 8. Nbd2 {[%clk 0:02:54.8]}
8... h6 {[%clk 0:02:55.2]} 9. Nc4 {[%clk 0:02:48.6]} 9... Bd6 {[%clk 0:02:51]}
10. Nxd6+ {[%clk 0:02:47]} 10... cxd6 {[%clk 0:02:49.1]} 11. Nd2 {[%clk
0:02:45]} 11... Qg6 {[%clk 0:02:43.9]} 12. f4 {[%clk 0:02:43.5]} 12... f6 {[%clk
0:02:31.8]} 13. Nc4 {[%clk 0:02:30.9]} 13... Ke7 {[%clk 0:02:21.7]} 14. fxe5
{[%clk 0:02:23.9]} 14... fxe5 {[%clk 0:02:21.2]} 15. Qd2 {[%clk 0:02:13.7]}
15... Nf6 {[%clk 0:02:19.7]} 16. Nxe5 {[%clk 0:02:09.9]} 16... dxe5 {[%clk
0:02:15.2]} 17. Bxc5+ {[%clk 0:02:08.9]} 17... Ke8 {[%clk 0:02:01.8]} 18. Qc3
{[%clk 0:02:07.5]} 18... Qg5 {[%clk 0:01:46.9]} 19. Rf3 {[%clk 0:02:05.5]} 19...
Rc8 {[%clk 0:01:40.7]} 20. Rg3 {[%clk 0:02:02.4]} 20... Ng4 {[%clk 0:01:30.6]}
21. Qb4 {[%clk 0:01:32.4]} 21... h5 {[%clk 0:01:00.4]} 22. Rf1 {[%clk
0:01:28.1]} 22... h4 {[%clk 0:00:52.6]} 23. Rgf3 {[%clk 0:01:27.6]} 23... Nf6
{[%clk 0:00:52.7]} 24. h3 {[%clk 0:01:10.7]} 24... Rh6 {[%clk 0:00:48.4]} 25.
Be3 {[%clk 0:01:08.3]} 25... Qg6 {[%clk 0:00:45.2]} 26. Bxh6 {[%clk 0:01:07.3]}
26... Qxh6 {[%clk 0:00:46.1]} 27. c4 {[%clk 0:01:02.4]} 27... b5 {[%clk
0:00:27.3]} 28. Qd6 {[%clk 0:01:00.1]} 28... Qg5 {[%clk 0:00:23.8]} 29. Rxf6
{[%clk 0:00:49.5]} 29... gxf6 {[%clk 0:00:22.8]} 30. Rxf6 {[%clk 0:00:49.6]}
30... Qe3+ {[%clk 0:00:17.3]} 31. Kh1 {[%clk 0:00:36.2]} 31... Qe1+ {[%clk
0:00:16.9]} 32. Kh2 {[%clk 0:00:35.3]} 32... Qg3+ {[%clk 0:00:17.4]} 33. Kg1
{[%clk 0:00:35.5]} 33... Qe1+ {[%clk 0:00:17.7]} 34. Rf1 {[%clk 0:00:33.5]}
34... Qe3+ {[%clk 0:00:15.3]} 35. Kh1 {[%clk 0:00:33.6]} 35... Qf4 {[%clk
0:00:05.3]} 36. Rxf4 {[%clk 0:00:31.9]} 36... exf4 {[%clk 0:00:06.2]} 37. b3
{[%clk 0:00:27.7]} 37... bxc4 {[%clk 0:00:06]} 38. bxc4 {[%clk 0:00:26.2]} 38...
f3 {[%clk 0:00:06]} 39. Qg6+ {[%clk 0:00:18.4]} 39... Kd8 {[%clk 0:00:05.8]} 40.
Qg5+ {[%clk 0:00:16.1]} 40... Kc7 {[%clk 0:00:06.2]} 41. Qf4+ {[%clk 0:00:14.5]}
41... Kc6 {[%clk 0:00:06.8]} 42. Qxf3 {[%clk 0:00:14.2]} 42... Kc5 {[%clk
0:00:07]} 43. Qe3+ {[%clk 0:00:13.2]} 43... Kb4 {[%clk 0:00:06.8]} 44. Qb6+
{[%clk 0:00:12.5]} 44... Kc3 {[%clk 0:00:06.6]} 45. Qxa6 {[%clk 0:00:11.4]}
45... Rf8 {[%clk 0:00:05.6]} 46. Qd6 {[%clk 0:00:08.7]} 46... Rf7 {[%clk
0:00:02.1]} 47. e5 {[%clk 0:00:08.2]} 47... Kd2 {[%clk 0:00:01.2]} 48. e6 {[%clk
0:00:07.9]} 48... Rf1+ {[%clk 0:00:02.1]} 49. Kh2 {[%clk 0:00:06.8]} 49... Bc8
{[%clk 0:00:02.8]} 50. e7 {[%clk 0:00:06.1]} 50... Bb7 {[%clk 0:00:02.4]} 51.
e8=Q {[%clk 0:00:05.4]} 51... Rf2 {[%clk 0:00:03]} 52. Qg8 {[%clk 0:00:02.5]}
52... Bxg2 {[%clk 0:00:01.9]} 53. Qxg2 {[%clk 0:00:02.1]} 53... Rxg2+ {[%clk
0:00:01.6]} 54. Kxg2 {[%clk 0:00:02.4]} 54... Kc3 {[%clk 0:00:02.3]} 55. Qh6
{[%clk 0:00:02.5]} 55... Kxd3 {[%clk 0:00:02.4]} 56. Qxh4 {[%clk 0:00:03.4]}
56... Kc3 {[%clk 0:00:02.2]} 57. Qg4 {[%clk 0:00:04.3]} 57... Kb4 {[%clk
0:00:03.1]} 58. h4 {[%clk 0:00:05.2]} 58... Kc5 {[%clk 0:00:04]} 59. h5 {[%clk
0:00:06.1]} 59... Kc6 {[%clk 0:00:04.3]} 60. h6 {[%clk 0:00:07]} 60... Kd6
{[%clk 0:00:05.2]} 61. h7 {[%clk 0:00:07.9]} 61... Kc6 {[%clk 0:00:06.1]} 62.
h8=Q {[%clk 0:00:08.2]} 62... Kc5 {[%clk 0:00:07]} 63. Qhh5+ {[%clk 0:00:08.2]}
63... Kc6 {[%clk 0:00:07.9]} 64. Qd5+ {[%clk 0:00:08.2]} 64... Kc7 {[%clk
0:00:07.5]} 65. Qg7+ {[%clk 0:00:08.3]} 1-0

[Event "*** SCC Grand Prix: Titled Tuesday Blitz"]
[Site "Chess.com"]
[Date "2020.08.04"]
[Round "3"]
[White "VitaliyBernadskiy"]
[Black "Azerichess"]
[Result "0-1"]
[WhiteElo "2756"]
[BlackElo "3017"]
[TimeControl "180+1"]
[EndTime "14:15:05 PDT"]
[Termination "Azerichess won by resignation"]

1. e4 {[%clk 0:03:00.9]} 1... e5 {[%clk 0:02:59.6]} 2. Nf3 {[%clk 0:02:59.9]}
2... Nc6 {[%clk 0:03:00.1]} 3. Bb5 {[%clk 0:02:58.7]} 3... g6 {[%clk 0:02:59.4]}
4. d4 {[%clk 0:02:57.2]} 4... exd4 {[%clk 0:02:57.7]} 5. Nxd4 {[%clk 0:02:58.1]}
5... Bg7 {[%clk 0:02:51.9]} 6. Nb3 {[%clk 0:02:58]} 6... Nf6 {[%clk 0:02:47.9]}
7. Nc3 {[%clk 0:02:57.1]} 7... O-O {[%clk 0:02:46.9]} 8. O-O {[%clk 0:02:56.9]}
8... Re8 {[%clk 0:02:44.4]} 9. Re1 {[%clk 0:02:48.7]} 9... d6 {[%clk 0:02:44.5]}
10. Bg5 {[%clk 0:02:41.4]} 10... h6 {[%clk 0:02:43.6]} 11. Bh4 {[%clk
0:02:41.5]} 11... Bd7 {[%clk 0:02:32.2]} 12. f4 {[%clk 0:02:16.1]} 12... Qc8
{[%clk 0:02:28.3]} 13. Qd2 {[%clk 0:01:40.1]} 13... a6 {[%clk 0:02:25.6]} 14.
Bf1 {[%clk 0:01:38.8]} 14... a5 {[%clk 0:02:24]} 15. a4 {[%clk 0:01:30.1]} 15...
Nb4 {[%clk 0:02:17.9]} 16. Nd4 {[%clk 0:01:26.2]} 16... c6 {[%clk 0:02:12.7]}
17. h3 {[%clk 0:01:18.8]} 17... Qc7 {[%clk 0:02:10.8]} 18. Rad1 {[%clk
0:01:17.5]} 18... Nh7 {[%clk 0:01:32.7]} 19. Bf2 {[%clk 0:01:15.6]} 19... Rad8
{[%clk 0:01:31.1]} 20. g3 {[%clk 0:01:10.3]} 20... Nf8 {[%clk 0:01:29]} 21. Bg2
{[%clk 0:01:08.6]} 21... Ne6 {[%clk 0:01:26.7]} 22. Nb3 {[%clk 0:01:07.8]} 22...
Bc8 {[%clk 0:01:24.2]} 23. Kh2 {[%clk 0:01:06.6]} 23... Nc5 {[%clk 0:01:20.2]}
24. Nd4 {[%clk 0:01:02.8]} 24... Kh7 {[%clk 0:01:15.4]} 25. Nf3 {[%clk
0:00:46.4]} 25... Qe7 {[%clk 0:01:07.7]} 26. Bd4 {[%clk 0:00:46.2]} 26... f6
{[%clk 0:01:03.5]} 27. Qf2 {[%clk 0:00:43.2]} 27... b6 {[%clk 0:00:58.4]} 28. e5
{[%clk 0:00:33.1]} 28... dxe5 {[%clk 0:00:55]} 29. fxe5 {[%clk 0:00:34]} 29...
f5 {[%clk 0:00:53.9]} 30. e6 {[%clk 0:00:22.9]} 30... Bxe6 {[%clk 0:00:49.4]}
31. Bxg7 {[%clk 0:00:21.5]} 31... Qxg7 {[%clk 0:00:50.3]} 32. Nd4 {[%clk
0:00:17.8]} 32... Bd7 {[%clk 0:00:50.2]} 33. h4 {[%clk 0:00:12.9]} 33... Qf6
{[%clk 0:00:44.4]} 34. Bf3 {[%clk 0:00:09.8]} 34... Rxe1 {[%clk 0:00:43.7]} 35.
Rxe1 {[%clk 0:00:10.7]} 35... Re8 {[%clk 0:00:40.8]} 36. Rxe8 {[%clk 0:00:10.8]}
36... Bxe8 {[%clk 0:00:41.7]} 37. Qe3 {[%clk 0:00:10.7]} 37... Bd7 {[%clk
0:00:41.1]} 38. Bg2 {[%clk 0:00:10.7]} 38... g5 {[%clk 0:00:40.5]} 39. hxg5
{[%clk 0:00:10.2]} 39... hxg5 {[%clk 0:00:41.4]} 40. Kg1 {[%clk 0:00:10.7]}
40... f4 {[%clk 0:00:41.1]} 41. gxf4 {[%clk 0:00:11.1]} 41... gxf4 {[%clk
0:00:39.2]} 42. Ne4 {[%clk 0:00:10.7]} 42... Nxe4 {[%clk 0:00:34]} 43. Qxe4+
{[%clk 0:00:11.6]} 43... Kg7 {[%clk 0:00:33.6]} 44. Nf3 {[%clk 0:00:11.3]} 44...
Nd5 {[%clk 0:00:25.8]} 45. Qe5 {[%clk 0:00:09.6]} 45... Bg4 {[%clk 0:00:17.9]}
46. Qe4 {[%clk 0:00:05.5]} 46... Bf5 {[%clk 0:00:13.2]} 47. Qe2 {[%clk 0:00:03]}
47... Qxb2 {[%clk 0:00:12.3]} 48. Ne5 {[%clk 0:00:01.8]} 48... Qd4+ {[%clk
0:00:12.2]} 49. Kh1 {[%clk 0:00:02.2]} 49... Ne3 {[%clk 0:00:08.6]} 50. Nf3
{[%clk 0:00:02.5]} 50... Qa1+ {[%clk 0:00:08.3]} 51. Kh2 {[%clk 0:00:02.5]}
51... Ng4+ {[%clk 0:00:07.9]} 52. Kh3 {[%clk 0:00:02.7]} 52... Ne3+ {[%clk
0:00:07.6]} 53. Kh2 {[%clk 0:00:02.9]} 53... Qf6 {[%clk 0:00:07.7]} 54. Kg1
{[%clk 0:00:02.4]} 54... Qg6 {[%clk 0:00:07.4]} 55. Nh4 {[%clk 0:00:02.4]} 55...
Qg5 {[%clk 0:00:07.5]} 56. Qf2 {[%clk 0:00:03]} 56... Kf6 {[%clk 0:00:07]} 57.
Nf3 {[%clk 0:00:02.4]} 57... Qg3 {[%clk 0:00:06.4]} 58. Qxg3 {[%clk 0:00:02]}
58... fxg3 {[%clk 0:00:07.3]} 59. Nd4 {[%clk 0:00:02.8]} 59... Bd7 {[%clk
0:00:05.9]} 60. Bxc6 {[%clk 0:00:02.2]} 60... Bxc6 {[%clk 0:00:05.5]} 61. Nxc6
{[%clk 0:00:03.1]} 61... Nxc2 {[%clk 0:00:04.9]} 62. Kg2 {[%clk 0:00:03.5]}
62... Ke6 {[%clk 0:00:05.5]} 63. Kxg3 {[%clk 0:00:03.9]} 63... Kd5 {[%clk
0:00:05.8]} 64. Na7 {[%clk 0:00:04.8]} 64... Nb4 {[%clk 0:00:04.6]} 65. Kf3
{[%clk 0:00:04.6]} 65... Nd3 {[%clk 0:00:04.9]} 66. Nc8 {[%clk 0:00:03.8]} 66...
Kc6 {[%clk 0:00:03.5]} 67. Ne7+ {[%clk 0:00:03.9]} 67... Kc5 {[%clk 0:00:03.6]}
68. Ke3 {[%clk 0:00:03.5]} 68... Nb2 {[%clk 0:00:04.2]} 69. Kd2 {[%clk
0:00:04.1]} 69... Nxa4 {[%clk 0:00:05.1]} 70. Kc2 {[%clk 0:00:04.7]} 70... b5
{[%clk 0:00:06]} 71. Ng6 {[%clk 0:00:05.1]} 71... Nb6 {[%clk 0:00:06.9]} 72. Nf4
{[%clk 0:00:06]} 72... b4 {[%clk 0:00:07]} 73. Nd3+ {[%clk 0:00:06.9]} 73... Kb5
{[%clk 0:00:07.4]} 74. Kb2 {[%clk 0:00:06.6]} 74... a4 {[%clk 0:00:07.8]} 75.
Kc2 {[%clk 0:00:07.4]} 75... Nc4 {[%clk 0:00:08.4]} 76. Nc1 {[%clk 0:00:07.3]}
76... a3 {[%clk 0:00:08.2]} 77. Kb3 {[%clk 0:00:07.2]} 77... Na5+ {[%clk
0:00:08.4]} 78. Ka2 {[%clk 0:00:07.1]} 78... Ka4 {[%clk 0:00:09.2]} 79. Nd3
{[%clk 0:00:07.7]} 79... b3+ {[%clk 0:00:09.4]} 80. Ka1 {[%clk 0:00:08.2]} 80...
Nc4 {[%clk 0:00:09.4]} 81. Kb1 {[%clk 0:00:06.7]} 81... Kb5 {[%clk 0:00:08.3]}
82. Nc1 {[%clk 0:00:06.5]} 82... Nd2+ {[%clk 0:00:07.2]} 0-1

[Event "*** SCC Grand Prix: Titled Tuesday Blitz"]
[Site "Chess.com"]
[Date "2020.08.04"]
[Round "3"]
[White "Artur0208"]
[Black "ArjunErigaisi2003"]
[Result "0-1"]
[WhiteElo "2776"]
[BlackElo "3047"]
[TimeControl "180+1"]
[EndTime "14:15:07 PDT"]
[Termination "ArjunErigaisi2003 won by resignation"]

1. d4 {[%clk 0:03:00.8]} 1... e6 {[%clk 0:02:58.6]} 2. c4 {[%clk 0:03:00.7]}
2... d5 {[%clk 0:02:57.8]} 3. Nc3 {[%clk 0:03:00.8]} 3... c6 {[%clk 0:02:57.9]}
4. Nf3 {[%clk 0:03:00.7]} 4... Nf6 {[%clk 0:02:57.4]} 5. e3 {[%clk 0:03:01.3]}
5... Nbd7 {[%clk 0:02:56.9]} 6. Bd3 {[%clk 0:03:01.8]} 6... dxc4 {[%clk
0:02:56.6]} 7. Bxc4 {[%clk 0:03:02.7]} 7... b5 {[%clk 0:02:56.2]} 8. Be2 {[%clk
0:03:01.6]} 8... Be7 {[%clk 0:02:49.8]} 9. Qc2 {[%clk 0:03:02.3]} 9... Bb7
{[%clk 0:02:48.2]} 10. O-O {[%clk 0:03:02.1]} 10... a6 {[%clk 0:02:45.3]} 11. e4
{[%clk 0:03:01.7]} 11... c5 {[%clk 0:02:43.7]} 12. dxc5 {[%clk 0:03:00.6]} 12...
Bxc5 {[%clk 0:02:37.2]} 13. e5 {[%clk 0:02:52]} 13... Nd5 {[%clk 0:02:32.8]} 14.
Ne4 {[%clk 0:02:48.9]} 14... Rc8 {[%clk 0:02:32]} 15. Bg5 {[%clk 0:02:46.5]}
15... Qb6 {[%clk 0:02:22]} 16. Nxc5 {[%clk 0:02:30.4]} 16... Rxc5 {[%clk
0:02:12.5]} 17. Qd2 {[%clk 0:02:29.2]} 17... h6 {[%clk 0:02:12]} 18. Be3 {[%clk
0:01:50.8]} 18... Nxe3 {[%clk 0:02:10.1]} 19. Qxe3 {[%clk 0:01:51.7]} 19... Bxf3
{[%clk 0:02:02.3]} 20. Bxf3 {[%clk 0:00:50.2]} 20... Rxe5 {[%clk 0:01:59.8]} 21.
Qxb6 {[%clk 0:00:49.2]} 21... Nxb6 {[%clk 0:02:00.7]} 22. Bb7 {[%clk 0:00:50.1]}
22... Ke7 {[%clk 0:01:35.4]} 23. Bxa6 {[%clk 0:00:48.7]} 23... Rb8 {[%clk
0:01:35.4]} 24. Rac1 {[%clk 0:00:44.9]} 24... Na4 {[%clk 0:01:16.9]} 25. b4
{[%clk 0:00:37.1]} 25... Rb6 {[%clk 0:01:10]} 26. Bc8 {[%clk 0:00:32.9]} 26...
Re2 {[%clk 0:01:03.1]} 27. Rc7+ {[%clk 0:00:30.8]} 27... Kf6 {[%clk 0:01:03.2]}
28. Bd7 {[%clk 0:00:29.2]} 28... Rb8 {[%clk 0:01:02.7]} 29. Rd1 {[%clk
0:00:22.7]} 29... Rxa2 {[%clk 0:00:58.8]} 30. g3 {[%clk 0:00:23.2]} 30... Ra3
{[%clk 0:00:54.6]} 31. Rd4 {[%clk 0:00:21.8]} 31... g5 {[%clk 0:00:55]} 32. Ra7
{[%clk 0:00:13.7]} 32... Nc3 {[%clk 0:00:49.4]} 33. Rxa3 {[%clk 0:00:08.2]}
33... Ne2+ {[%clk 0:00:50]} 34. Kf1 {[%clk 0:00:08.4]} 34... Nxd4 {[%clk
0:00:50.9]} 35. Rd3 {[%clk 0:00:09.3]} 35... e5 {[%clk 0:00:42.2]} 36. f4 {[%clk
0:00:06.5]} 36... Ra8 {[%clk 0:00:33.6]} 37. fxe5+ {[%clk 0:00:05.2]} 37... Kxe5
{[%clk 0:00:34.5]} 38. Re3+ {[%clk 0:00:04.8]} 38... Kd6 {[%clk 0:00:34.5]} 39.
Be8 {[%clk 0:00:05.1]} 39... f5 {[%clk 0:00:28.1]} 40. Bf7 {[%clk 0:00:04.6]}
40... Nc2 {[%clk 0:00:22.9]} 41. Re6+ {[%clk 0:00:03.7]} 41... Kc7 {[%clk
0:00:20]} 42. Rxh6 {[%clk 0:00:04]} 42... Nxb4 {[%clk 0:00:19.1]} 43. Be6 {[%clk
0:00:04.8]} 43... Rf8 {[%clk 0:00:14.7]} 44. Rh7+ {[%clk 0:00:05.4]} 44... Kd6
{[%clk 0:00:14.5]} 45. Bd7 {[%clk 0:00:06]} 45... Nc6 {[%clk 0:00:13.6]} 46. Ke2
{[%clk 0:00:05.7]} 46... b4 {[%clk 0:00:12.2]} 47. Kd2 {[%clk 0:00:06.2]} 47...
Ne5 {[%clk 0:00:12.1]} 48. Ba4 {[%clk 0:00:06.6]} 48... Kc5 {[%clk 0:00:10.6]}
49. Bb3 {[%clk 0:00:06.7]} 49... Kd4 {[%clk 0:00:10]} 50. Rh6 {[%clk 0:00:06.4]}
50... f4 {[%clk 0:00:07.9]} 51. Rd6+ {[%clk 0:00:06.1]} 51... Ke4 {[%clk
0:00:08.3]} 52. Bd5+ {[%clk 0:00:05.7]} 52... Kf5 {[%clk 0:00:08.2]} 53. Be6+
{[%clk 0:00:06.3]} 53... Kf6 {[%clk 0:00:08.4]} 54. Bh3+ {[%clk 0:00:06.2]}
54... Kg7 {[%clk 0:00:07.6]} 55. Rd5 {[%clk 0:00:06.6]} 55... Nf3+ {[%clk
0:00:04.7]} 56. Kd3 {[%clk 0:00:03.9]} 56... b3 {[%clk 0:00:04.4]} 57. Rb5
{[%clk 0:00:03]} 57... Rd8+ {[%clk 0:00:02.9]} 58. Ke4 {[%clk 0:00:03.6]} 58...
Nd2+ {[%clk 0:00:03]} 59. Kf5 {[%clk 0:00:04.3]} 59... fxg3 {[%clk 0:00:03.5]}
60. hxg3 {[%clk 0:00:04.8]} 60... Rd3 {[%clk 0:00:03.6]} 61. Kg4 {[%clk
0:00:03]} 61... Kf6 {[%clk 0:00:03.4]} 62. Rf5+ {[%clk 0:00:02.7]} 62... Ke7
{[%clk 0:00:03.4]} 63. Rb5 {[%clk 0:00:03.3]} 63... Nc4 {[%clk 0:00:03.7]} 64.
Bf1 {[%clk 0:00:03.6]} 64... Ne3+ {[%clk 0:00:03]} 65. Kxg5 {[%clk 0:00:04.5]}
65... Nxf1 {[%clk 0:00:03.9]} 66. Kf4 {[%clk 0:00:05.4]} 66... Nxg3 {[%clk
0:00:03.8]} 67. Ke5 {[%clk 0:00:05.4]} 67... Kd7 {[%clk 0:00:03.9]} 68. Rb8
{[%clk 0:00:05.1]} 68... Kc6 {[%clk 0:00:04.2]} 69. Rc8+ {[%clk 0:00:05.5]}
69... Kb5 {[%clk 0:00:04.7]} 70. Rb8+ {[%clk 0:00:06.4]} 70... Ka4 {[%clk
0:00:05.1]} 71. Rc8 {[%clk 0:00:07.3]} 71... Kb4 {[%clk 0:00:05.4]} 72. Rb8+
{[%clk 0:00:08.2]} 72... Ka3 {[%clk 0:00:06]} 73. Re8 {[%clk 0:00:09]} 73... Kb2
{[%clk 0:00:06.1]} 74. Rc8 {[%clk 0:00:09.9]} 74... Ka2 {[%clk 0:00:06.2]} 75.
Ra8+ {[%clk 0:00:10.3]} 75... Kb1 {[%clk 0:00:06.7]} 76. Rd8 {[%clk 0:00:11.2]}
76... Rxd8 {[%clk 0:00:06.3]} 0-1

[Event "*** SCC Grand Prix: Titled Tuesday Blitz"]
[Site "Chess.com"]
[Date "2020.08.04"]
[Round "3"]
[White "Bulldog167"]
[Black "Robert_Chessmood"]
[Result "0-1"]
[WhiteElo "2726"]
[BlackElo "2976"]
[TimeControl "180+1"]
[EndTime "14:15:21 PDT"]
[Termination "Robert_Chessmood won by resignation"]

1. d4 {[%clk 0:03:00.9]} 1... d5 {[%clk 0:02:59.8]} 2. c4 {[%clk 0:03:01.3]}
2... c6 {[%clk 0:03:00.2]} 3. cxd5 {[%clk 0:03:01.6]} 3... cxd5 {[%clk
0:03:01.1]} 4. Bf4 {[%clk 0:03:02.2]} 4... Nc6 {[%clk 0:02:59.2]} 5. e3 {[%clk
0:03:02.7]} 5... Nf6 {[%clk 0:02:59.2]} 6. Nc3 {[%clk 0:03:03.1]} 6... Bf5
{[%clk 0:02:59.7]} 7. Qb3 {[%clk 0:03:02.6]} 7... Na5 {[%clk 0:02:59.6]} 8. Qa4+
{[%clk 0:03:03.1]} 8... Bd7 {[%clk 0:03:00]} 9. Qc2 {[%clk 0:03:03.7]} 9... e6
{[%clk 0:02:58.9]} 10. Bd3 {[%clk 0:03:04.1]} 10... Nh5 {[%clk 0:02:57.8]} 11.
Be5 {[%clk 0:02:59.2]} 11... Nc6 {[%clk 0:02:58]} 12. Nf3 {[%clk 0:02:58.8]}
12... Nb4 {[%clk 0:02:50.5]} 13. Qd2 {[%clk 0:02:58.8]} 13... Nxd3+ {[%clk
0:02:49.5]} 14. Qxd3 {[%clk 0:02:59.7]} 14... Nf6 {[%clk 0:02:32.8]} 15. O-O
{[%clk 0:02:55.5]} 15... Be7 {[%clk 0:02:32.8]} 16. Rfc1 {[%clk 0:02:50.8]}
16... O-O {[%clk 0:02:32.5]} 17. Nb5 {[%clk 0:02:10.7]} 17... Bc6 {[%clk
0:02:13.6]} 18. Qb3 {[%clk 0:01:25.7]} 18... Qd7 {[%clk 0:01:57.9]} 19. Nc3
{[%clk 0:01:22.9]} 19... Rfc8 {[%clk 0:01:57.8]} 20. Bg3 {[%clk 0:01:05.9]}
20... b6 {[%clk 0:01:32.3]} 21. Ne5 {[%clk 0:01:05.4]} 21... Qb7 {[%clk
0:01:32.7]} 22. Nxc6 {[%clk 0:01:04.2]} 22... Rxc6 {[%clk 0:01:32.4]} 23. Ne2
{[%clk 0:01:02.9]} 23... Rac8 {[%clk 0:01:31.6]} 24. Rxc6 {[%clk 0:00:57.4]}
24... Rxc6 {[%clk 0:01:32.5]} 25. Rc1 {[%clk 0:00:55.9]} 25... Ne4 {[%clk
0:01:25.5]} 26. f3 {[%clk 0:00:41.5]} 26... Nxg3 {[%clk 0:01:13.7]} 27. hxg3
{[%clk 0:00:41.2]} 27... h5 {[%clk 0:01:10.4]} 28. Kf2 {[%clk 0:00:37.6]} 28...
g6 {[%clk 0:01:06.2]} 29. Rxc6 {[%clk 0:00:36.1]} 29... Qxc6 {[%clk 0:01:06.3]}
30. Qc3 {[%clk 0:00:36.6]} 30... Qc4 {[%clk 0:00:55.2]} 31. b3 {[%clk 0:00:25]}
31... Qxc3 {[%clk 0:00:55.4]} 32. Nxc3 {[%clk 0:00:25.3]} 32... a6 {[%clk
0:00:55.2]} 33. Na4 {[%clk 0:00:22.1]} 33... Bd8 {[%clk 0:00:54.8]} 34. f4
{[%clk 0:00:20.5]} 34... Kf8 {[%clk 0:00:53.6]} 35. Kf3 {[%clk 0:00:19.8]} 35...
Ke8 {[%clk 0:00:53.5]} 36. g4 {[%clk 0:00:20.1]} 36... hxg4+ {[%clk 0:00:52.8]}
37. Kxg4 {[%clk 0:00:21]} 37... Kd7 {[%clk 0:00:52.8]} 38. Kf3 {[%clk
0:00:20.3]} 38... Kc6 {[%clk 0:00:52.3]} 39. Nc3 {[%clk 0:00:20.4]} 39... Be7
{[%clk 0:00:49.6]} 40. Ke2 {[%clk 0:00:18.9]} 40... Bb4 {[%clk 0:00:45.6]} 41.
Nd1 {[%clk 0:00:19.1]} 41... Kb5 {[%clk 0:00:43.2]} 42. Kd3 {[%clk 0:00:14]}
42... Be1 {[%clk 0:00:41.3]} 43. a3 {[%clk 0:00:13.3]} 43... a5 {[%clk
0:00:37.3]} 44. Ke2 {[%clk 0:00:11.5]} 44... Bh4 {[%clk 0:00:37.3]} 45. Nc3+
{[%clk 0:00:11.6]} 45... Kc6 {[%clk 0:00:37.8]} 46. a4 {[%clk 0:00:12]} 46...
Be7 {[%clk 0:00:37.5]} 47. Kd3 {[%clk 0:00:09.4]} 47... Bb4 {[%clk 0:00:37.9]}
48. Ne2 {[%clk 0:00:08.4]} 48... Be7 {[%clk 0:00:31.7]} 49. Ng1 {[%clk
0:00:08.5]} 49... Kd7 {[%clk 0:00:24.3]} 50. Nf3 {[%clk 0:00:09.4]} 50... Bf6
{[%clk 0:00:24.6]} 51. g4 {[%clk 0:00:08.5]} 51... Kc6 {[%clk 0:00:21.4]} 52.
Nh2 {[%clk 0:00:03.5]} 52... Kd7 {[%clk 0:00:20.5]} 53. Nf1 {[%clk 0:00:04.1]}
53... Kc6 {[%clk 0:00:20.1]} 54. Ng3 {[%clk 0:00:04.8]} 54... Kd7 {[%clk
0:00:20.4]} 55. Ne2 {[%clk 0:00:05.3]} 55... Kc6 {[%clk 0:00:20.3]} 56. Nc3
{[%clk 0:00:05.3]} 56... Be7 {[%clk 0:00:20.7]} 57. e4 {[%clk 0:00:03.4]} 57...
dxe4+ {[%clk 0:00:19.7]} 58. Kxe4 {[%clk 0:00:04.3]} 58... f5+ {[%clk 0:00:13]}
59. gxf5 {[%clk 0:00:05.2]} 59... exf5+ {[%clk 0:00:11.7]} 60. Ke3 {[%clk
0:00:01.9]} 60... g5 {[%clk 0:00:10.8]} 61. fxg5 {[%clk 0:00:01.6]} 61... Bxg5+
{[%clk 0:00:11.7]} 62. Kd3 {[%clk 0:00:02.3]} 62... Be7 {[%clk 0:00:08.7]} 63.
Kc4 {[%clk 0:00:02.7]} 63... Bd6 {[%clk 0:00:04.9]} 64. d5+ {[%clk 0:00:02.8]}
64... Kd7 {[%clk 0:00:05.1]} 65. Kd4 {[%clk 0:00:02.6]} 65... Ke7 {[%clk
0:00:04.8]} 66. Nb5 {[%clk 0:00:02.8]} 66... Bh2 {[%clk 0:00:04.7]} 67. Ke3
{[%clk 0:00:02.7]} 67... Kf6 {[%clk 0:00:04.3]} 68. Kf3 {[%clk 0:00:01.4]} 68...
Ke5 {[%clk 0:00:04.1]} 69. d6 {[%clk 0:00:02.1]} 69... Ke6 {[%clk 0:00:04.4]}
70. d7 {[%clk 0:00:01.1]} 70... Kxd7 {[%clk 0:00:04.4]} 71. Nd4 {[%clk
0:00:01.8]} 71... f4 {[%clk 0:00:04.3]} 72. Ke4 {[%clk 0:00:01.7]} 72... Kd6
{[%clk 0:00:04.2]} 73. Nf3 {[%clk 0:00:02]} 73... Bg3 {[%clk 0:00:03.8]} 74. Kd4
{[%clk 0:00:02.9]} 74... Kc6 {[%clk 0:00:03.8]} 75. Kc4 {[%clk 0:00:03.3]} 75...
Bf2 {[%clk 0:00:02.8]} 76. Nd2 {[%clk 0:00:03.2]} 76... Be3 {[%clk 0:00:02.8]}
77. Nf3 {[%clk 0:00:03.7]} 77... Kd6 {[%clk 0:00:03]} 78. Ng5 {[%clk 0:00:02.6]}
78... Ke5 {[%clk 0:00:03]} 79. Kd3 {[%clk 0:00:03.3]} 79... Kf5 {[%clk
0:00:03.1]} 80. Nf3 {[%clk 0:00:03.9]} 80... Kg4 {[%clk 0:00:03.7]} 81. Ke4
{[%clk 0:00:03.8]} 81... Kg3 {[%clk 0:00:04.4]} 82. Ne5 {[%clk 0:00:04.3]} 82...
Kf2 {[%clk 0:00:04]} 83. Nd3+ {[%clk 0:00:04.7]} 83... Ke2 {[%clk 0:00:03.9]}
84. Ne5 {[%clk 0:00:05.3]} 84... Kd2 {[%clk 0:00:03.8]} 85. Nc4+ {[%clk
0:00:04]} 85... Kc3 {[%clk 0:00:03.6]} 86. Nxb6 {[%clk 0:00:01.8]} 0-1

[Event "*** SCC Grand Prix: Titled Tuesday Blitz"]
[Site "Chess.com"]
[Date "2020.08.04"]
[Round "4"]
[White "Quiet_Desperation"]
[Black "Manukyan_Artak"]
[Result "1/2-1/2"]
[WhiteElo "2267"]
[BlackElo "2448"]
[TimeControl "180+1"]
[EndTime "14:18:15 PDT"]
[Termination "Game drawn by repetition"]

1. e4 {[%clk 0:03:00.9]} 1... c6 {[%clk 0:02:59.8]} 2. Nf3 {[%clk 0:02:59.9]}
2... d5 {[%clk 0:03:00.7]} 3. Nc3 {[%clk 0:03:00.2]} 3... Bg4 {[%clk 0:02:59.2]}
4. h3 {[%clk 0:03:00.6]} 4... Bxf3 {[%clk 0:02:59.1]} 5. Qxf3 {[%clk 0:03:00.8]}
5... Nf6 {[%clk 0:02:59.6]} 6. d3 {[%clk 0:02:57.4]} 6... e5 {[%clk 0:02:58.5]}
7. Bg5 {[%clk 0:02:53.5]} 7... d4 {[%clk 0:02:58]} 8. Ne2 {[%clk 0:02:51.9]}
8... Bb4+ {[%clk 0:02:57.7]} 9. c3 {[%clk 0:02:51.7]} 9... dxc3 {[%clk
0:02:57.7]} 10. bxc3 {[%clk 0:02:51.9]} 10... Be7 {[%clk 0:02:58.4]} 11. Ng3
{[%clk 0:02:49.4]} 11... O-O {[%clk 0:02:54.5]} 12. Be2 {[%clk 0:02:49.6]} 12...
c5 {[%clk 0:02:50.3]} 13. O-O {[%clk 0:02:48.6]} 13... Nc6 {[%clk 0:02:49.9]}
14. Rad1 {[%clk 0:02:44]} 14... g6 {[%clk 0:02:43.1]} 15. Bh6 {[%clk 0:02:41.8]}
15... Re8 {[%clk 0:02:42.4]} 16. Nf5 {[%clk 0:02:32.9]} 16... Bf8 {[%clk
0:02:37.9]} 17. Qg3 {[%clk 0:02:31.1]} 17... Bxh6 {[%clk 0:02:27.9]} 18. Nxh6+
{[%clk 0:02:29.6]} 18... Kg7 {[%clk 0:02:28.4]} 19. Nf5+ {[%clk 0:02:29]} 19...
Kh8 {[%clk 0:02:28.4]} 20. Nh6 {[%clk 0:02:26.5]} 20... Kg7 {[%clk 0:02:21]} 21.
Nf5+ {[%clk 0:02:18.1]} 21... Kg8 {[%clk 0:02:16.3]} 22. Nh6+ {[%clk 0:02:17.8]}
22... Kg7 {[%clk 0:02:08.2]} 1/2-1/2